fUST/lending_fUST_20250302
["ID","MTS","AMOUNT","RATE_DAILY","PERIOD"]
[355078571,1740887457929,-500.0,0.00024064,2]
[355078573,1740887457939,-500.0,0.00024064,2]
[355078575,1740887457948,-512.93335325,0.00024064,2]
[355078577,1740887457957,-500.0,0.00024064,2]
[355078579,1740887457967,-214.57997387,0.00024064,2]
[355078581,1740887457977,-500.0,0.00024064,2]
[355078584,1740887457986,-500.0,0.00024064,2]
[355078586,1740887457996,-500.0,0.00024064,2]
[355078588,1740887458005,-500.0,0.00024064,2]
[355078589,1740887458014,-500.0,0.00024064,2]
[355078591,1740887458024,-500.0,0.00024064,2]
[355078594,1740887458033,-500.0,0.00024064,2]
[355078596,1740887458043,-500.0,0.00024064,2]
[355078598,1740887458052,-903.21,0.00024064,2]
[355078600,1740887458062,-500.0,0.00024064,2]
[355078602,1740887458072,-500.0,0.00024064,2]
[355078604,1740887458081,-500.0,0.00024064,2]
[355078606,1740887458090,-199.23926275,0.00024064,2]
[355078608,1740887458100,-500.0,0.00024073,2]
[355078610,1740887458109,-500.0,0.00024076,2]
[355078611,1740887458118,-500.0,0.00024076,2]
[355078614,1740887458128,-500.0,0.00024076,2]
[355078615,1740887458138,-540.28552277,0.00024076,2]
[355078618,1740887458147,-500.0,0.00024076,2]
[355078620,1740887458157,-500.0,0.00024076,2]
[355078622,1740887458166,-500.0,0.00024076,2]
[355078624,1740887458176,-500.0,0.00024076,2]
[355078626,1740887458186,-513.48709031,0.00024076,2]
[355078628,1740887458195,-501.49252279,0.00024076,2]
[355078630,1740887458204,-500.0,0.00024076,2]
[355078631,1740887458214,-500.0,0.00024076,2]
[355078634,1740887458224,-500.0,0.00024076,2]
[355078636,1740887458233,-500.0,0.00024076,2]
[355078638,1740887458243,-500.0,0.00024076,2]
[355078640,1740887458252,-335.33567331,0.00024076,2]
[355078641,1740887458262,-500.41883245,0.00024076,2]
[355078643,1740887458271,-333.00145569,0.00024076,2]
[355078646,1740887458282,-502.23766317,0.00024076,2]
[355078647,1740887458291,-500.0,0.00024076,2]
[355078649,1740887458301,-500.0,0.00024076,2]
[355078652,1740887458310,-500.0,0.00024076,2]
[355078654,1740887458319,-500.0,0.00024077,2]
[355078656,1740887458329,-500.0,0.00024077,2]
[355078657,1740887458338,-461.31720248,0.00024077,2]
[355078659,1740887458347,-500.0,0.00024077,2]
[355078661,1740887458357,-160.0,0.00024077,7]
[355078663,1740887458367,-160.0,0.00024077,7]
[355078666,1740887458376,-160.0,0.00024077,7]
[355078667,1740887458385,-752.9,0.00024109,2]
[355078670,1740887458395,-752.9,0.00024109,2]
[355078672,1740887458406,-752.9,0.00024109,2]
[355078674,1740887458416,-292.88431348,0.00024144,2]
[355078676,1740887458426,-576.55,0.00024239,2]
[355078678,1740887458436,-565.43081159,0.00024239,2]
[355078680,1740887458446,-500.0,0.00024241,2]
[355078682,1740887458456,-634.87845966,0.00024241,2]
[355078717,1740887458790,-500.0,0.00023422,2]
[355078719,1740887458801,-500.0,0.00023422,2]
[355078721,1740887458811,-500.0,0.00023691,2]
[355078723,1740887458821,-500.0,0.00023696,2]
[355078725,1740887458831,-500.0,0.00023965,2]
[355078727,1740887458841,-501.86636348,0.00024239,2]
[355078729,1740887458851,-61.06154034,0.00024241,2]
[355078730,1740887458861,-500.0,0.00024241,2]
[355078731,1740887458872,-429.04804299,0.00024241,2]
[355078732,1740887458882,-500.0,0.00024241,2]
[355078733,1740887458893,-521.57456414,0.00024241,2]
[355078734,1740887458903,-503.98684283,0.00024241,2]
[355078735,1740887458913,-500.0,0.00024241,2]
[355078736,1740887458923,-638.24,0.00024241,2]
[355078737,1740887458932,-502.60698605,0.00024241,2]
[355078738,1740887458942,-500.0,0.00024241,2]
[355078739,1740887458952,-500.0,0.00024241,2]
[355078740,1740887458962,-143.65589834,0.00024241,2]
[355078768,1740887459272,-500.0,0.00023421,2]
[355078770,1740887459282,-195.69,0.00023696,2]
[355078772,1740887459293,-333.19,0.0002397,2]
[355078774,1740887459303,-356.34410166,0.00024241,2]
[355078776,1740887459313,-500.0,0.00024241,2]
[355078778,1740887459323,-500.0,0.00024241,2]
[355078781,1740887459333,-500.0,0.00024241,2]
[355078783,1740887459344,-500.0,0.00024241,2]
[355078785,1740887459353,-500.0,0.00024241,2]
[355078787,1740887459363,-500.0,0.00024241,2]
[355078789,1740887459373,-512.29,0.00024241,2]
[355078791,1740887459383,-500.0,0.00024241,2]
[355078793,1740887459394,-500.0,0.00024241,2]
[355078795,1740887459404,-500.0,0.00024241,2]
[355078797,1740887459414,-364.78280066,0.00024241,2]
[355078799,1740887459423,-500.0,0.00024241,2]
[355078801,1740887459433,-500.0,0.00024241,2]
[355078803,1740887459444,-500.0,0.00024241,2]
[355078805,1740887459453,-500.0,0.00024241,2]
[355078807,1740887459463,-500.0,0.00024241,2]
[355078809,1740887459473,-503.44680258,0.00024241,2]
[355078812,1740887459483,-500.0,0.00024241,2]
[355078814,1740887459492,-500.0,0.00024241,2]
[355078816,1740887459502,-500.0,0.00024241,2]
[355078818,1740887459513,-626.01873647,0.00024241,2]
[355078820,1740887459523,-517.75,0.00024241,2]
[355078822,1740887459533,-500.0,0.00024241,2]
[355078824,1740887459542,-500.0,0.00024241,2]
[355078826,1740887459552,-534.90370908,0.00024241,2]
[355078828,1740887459565,-200.0,0.00024241,2]
[355078830,1740887459574,-500.0,0.00024241,2]
[355078832,1740887459585,-500.0,0.00024241,2]
[355078834,1740887459599,-500.0,0.00024241,2]
[355078836,1740887459610,-500.0,0.00024241,2]
[355078838,1740887459620,-500.0,0.00024241,2]
[355078840,1740887459631,-500.0,0.00024241,2]
[355078842,1740887459641,-500.0,0.00024241,2]
[355078844,1740887459650,-500.0,0.00024241,2]
[355078846,1740887459661,-555.95,0.00024241,2]
[355078849,1740887459672,-500.0,0.00024241,2]
[355078851,1740887459683,-500.0,0.00024241,2]
[355078853,1740887459692,-502.14562629,0.00024241,2]
[355078855,1740887459702,-500.0,0.00024241,2]
[355078857,1740887459712,-500.0,0.00024241,2]
[355078859,1740887459722,-500.0,0.00024241,2]
[355078861,1740887459732,-500.0,0.00024241,2]
[355078863,1740887459743,-500.0,0.00024241,2]
[355078865,1740887459752,-500.0,0.00024241,2]
[355078867,1740887459762,-604.17,0.00024241,2]
[355078869,1740887459772,-500.0,0.00024241,2]
[355078871,1740887459782,-500.0,0.00024241,2]
[355078873,1740887459793,-500.0,0.00024241,2]
[355078875,1740887459803,-500.0,0.00024241,2]
[355078877,1740887459813,-500.0,0.00024241,2]
[355078879,1740887459823,-500.0,0.00024241,2]
[355078881,1740887459833,-500.0,0.00024241,2]
[355078883,1740887459843,-500.0,0.00024241,2]
[355078885,1740887459854,-500.0,0.00024241,2]
[355078887,1740887459864,-500.0,0.00024241,2]
[355078889,1740887459874,-500.0,0.00024241,2]
[355078891,1740887459884,-535.38,0.00024241,2]
[355078894,1740887459894,-500.0,0.00024241,2]
[355078896,1740887459905,-289.68997687,0.00024241,2]
[355078898,1740887459915,-514.84733664,0.00024241,2]
[355078900,1740887459926,-644.85,0.00024241,2]
[355078902,1740887459937,-542.40248694,0.00024241,2]
[355078904,1740887459947,-500.0,0.00024241,2]
[355078906,1740887459957,-500.0,0.00024241,2]
[355078908,1740887459967,-1109.68,0.00024241,2]
[355078910,1740887459978,-500.0,0.00024241,2]
[355078912,1740887459987,-500.0,0.00024241,2]
[355078914,1740887459997,-500.0,0.00024241,2]
[355078916,1740887460008,-500.0,0.00024241,2]
[355078918,1740887460018,-500.0,0.00024241,2]
[355078921,1740887460030,-500.0,0.00024241,2]
[355078923,1740887460041,-509.44778026,0.00024241,2]
[355078925,1740887460052,-500.0,0.00024241,2]
[355078927,1740887460062,-500.0,0.00024241,2]
[355078929,1740887460072,-500.0,0.00024241,2]
[355078931,1740887460083,-500.0,0.00024243,2]
[355078933,1740887460093,-500.0,0.00024243,2]
[355078935,1740887460104,-500.0,0.00024243,2]
[355078937,1740887460115,-3938.98,0.00024243,2]
[355078939,1740887460126,-1897.21,0.00024243,2]
[355078941,1740887460136,-1000.0,0.00024243,5]
[355078943,1740887460147,-500.0,0.00024243,2]
[355078946,1740887460157,-814.94,0.00024243,2]
[355078948,1740887460168,-500.0,0.00024243,2]
[355078950,1740887460178,-500.0,0.00024243,2]
[355078952,1740887460189,-582.56,0.00024243,2]
[355078954,1740887460199,-500.0,0.00024243,2]
[355078956,1740887460209,-500.0,0.00024244,2]
[355078958,1740887460220,-500.0,0.00024244,2]
[355078960,1740887460231,-500.0,0.00024244,2]
[355078962,1740887460242,-500.0,0.00024244,2]
[355078964,1740887460252,-500.0,0.00024244,2]
[355078966,1740887460263,-606.5,0.00024244,2]
[355078968,1740887460273,-1398.67,0.00024244,2]
[355078970,1740887460283,-500.0,0.00024244,2]
[355078973,1740887460294,-500.0,0.00024244,2]
[355078975,1740887460304,-610.78,0.00024244,2]
[355078977,1740887460314,-500.0,0.00024244,2]
[355078979,1740887460324,-500.0,0.00024244,2]
[355078981,1740887460334,-500.0,0.00024244,2]
[355078983,1740887460344,-500.0,0.00024244,2]
[355078985,1740887460355,-500.0,0.00024244,2]
[355078987,1740887460365,-500.0,0.00024244,2]
[355078989,1740887460375,-722.78,0.00024244,2]
[355078991,1740887460386,-500.0,0.00024244,2]
[355078993,1740887460396,-500.0,0.00024244,2]
[355078996,1740887460409,-500.0,0.00024244,2]
[355078998,1740887460420,-1444.05,0.00024244,2]
[355079000,1740887460431,-500.0,0.00024244,2]
[355079002,1740887460441,-500.0,0.00024244,2]
[355079004,1740887460451,-500.0,0.00024244,2]
[355079006,1740887460461,-500.0,0.00024244,2]
[355079008,1740887460472,-1058.22,0.00024244,2]
[355079010,1740887460483,-500.0,0.00024244,2]
[355079012,1740887460493,-500.0,0.00024244,2]
[355079014,1740887460503,-1004.44,0.00024244,2]
[355079016,1740887460513,-500.0,0.00024244,2]
[355079019,1740887460524,-500.0,0.00024244,2]
[355079021,1740887460534,-500.0,0.00024244,2]
[355079023,1740887460545,-699.97,0.00024244,2]
[355079025,1740887460555,-2209.6,0.00024244,2]
[355079027,1740887460565,-500.0,0.00024244,2]
[355079029,1740887460575,-500.0,0.00024244,2]
[355079031,1740887460585,-6855.05,0.00024244,2]
[355079033,1740887460598,-500.0,0.00024244,2]
[355079035,1740887460609,-933.72,0.00024244,2]
[355079059,1740887460851,-500.0,0.00024244,2]
[355079062,1740887460863,-500.0,0.00024244,2]
[355079064,1740887460875,-500.0,0.00024244,2]
[355079066,1740887460885,-612.38,0.00024244,2]
[355079068,1740887460895,-785.13,0.00024244,2]
[355079070,1740887460905,-829.6,0.00024244,2]
[355079072,1740887460915,-966.52,0.00024244,2]
[355079074,1740887460926,-895.37,0.00024244,2]
[355079076,1740887460936,-500.0,0.00024244,2]
[355079078,1740887460947,-500.0,0.00024244,2]
[355079080,1740887460957,-500.0,0.00024244,2]
[355079082,1740887460966,-500.0,0.00024244,2]
[355079084,1740887460976,-6949.16,0.00024244,2]
[355079086,1740887460987,-500.0,0.00024244,2]
[355079089,1740887460998,-500.0,0.00024244,2]
[355079091,1740887461008,-500.0,0.00024244,2]
[355079092,1740887461019,-863.82,0.00024244,2]
[355079095,1740887461030,-4270.14,0.00024244,2]
[355079097,1740887461040,-500.0,0.00024244,2]
[355079099,1740887461050,-500.0,0.00024244,2]
[355079101,1740887461060,-1135.48,0.00024244,2]
[355079103,1740887461070,-637.67,0.00024244,2]
[355079105,1740887461080,-500.0,0.00024244,2]
[355079107,1740887461090,-5348.24,0.00024244,2]
[355079109,1740887461099,-3293.1,0.00024244,2]
[355079111,1740887461110,-406.27684357,0.00024244,2]
[355079113,1740887461120,-4549.77,0.00024244,2]
[355079115,1740887461130,-769.42,0.00024244,2]
[355079117,1740887461139,-500.0,0.00024244,2]
[355079119,1740887461150,-2567.41,0.00024244,2]
[355079121,1740887461162,-1086.26,0.00024244,2]
[355079123,1740887461173,-500.0,0.00024244,2]
[355079125,1740887461185,-500.0,0.00024244,2]
[355079127,1740887461195,-604.84,0.00024244,2]
[355079130,1740887461204,-7043.4,0.00024244,2]
[355079132,1740887461215,-786.15,0.00024244,2]
[355079134,1740887461225,-500.0,0.00024244,2]
[355079136,1740887461235,-500.0,0.00024244,2]
[355079138,1740887461245,-500.0,0.00024244,2]
[355079140,1740887461255,-500.0,0.00024244,2]
[355079142,1740887461271,-500.0,0.00024244,2]
[355079144,1740887461282,-1576.77,0.00024244,2]
[355079146,1740887461293,-500.0,0.00024244,2]
[355079148,1740887461303,-500.0,0.00024244,2]
[355079150,1740887461313,-2514.1,0.00024244,2]
[355079152,1740887461324,-2961.51,0.00024244,2]
[355079154,1740887461335,-5947.3,0.00024244,2]
[355079156,1740887461345,-500.0,0.00024244,2]
[355079158,1740887461355,-500.0,0.00024244,2]
[355079160,1740887461365,-500.0,0.00024244,2]
[355079162,1740887461375,-1198.18,0.00024244,2]
[355079164,1740887461385,-1870.92,0.00024244,2]
[355079166,1740887461395,-1004.96,0.00024244,2]
[355079168,1740887461405,-500.0,0.00024244,2]
[355079170,1740887461416,-752.9,0.00024244,2]
[355079172,1740887461427,-500.0,0.00024244,2]
[355079174,1740887461437,-500.0,0.00024244,2]
[355079176,1740887461448,-90588.84,0.00024245,2]
[355079179,1740887461458,-1608.93,0.00024245,2]
[355079181,1740887461469,-917.51,0.00024245,2]
[355079183,1740887461478,-7853.56,0.00024245,2]
[355079186,1740887461503,-2071.45,0.00024245,2]
[355079188,1740887461516,-500.0,0.00024245,2]
[355079191,1740887461527,-500.0,0.00024245,2]
[355079193,1740887461539,-2786.42,0.00024245,2]
[355079195,1740887461551,-584.33,0.00024245,2]
[355079197,1740887461562,-25446.5,0.00024245,2]
[355079200,1740887461574,-726.66,0.00024245,2]
[355079202,1740887461585,-222000.0,0.0002425,2]
[355079204,1740887461600,-500.0,0.00024273,2]
[355079206,1740887461611,-500.0,0.00024273,2]
[355079208,1740887461622,-500.0,0.00024273,2]
[355079210,1740887461632,-500.0,0.00024273,2]
[355079212,1740887461644,-500.0,0.00024273,2]
[355079214,1740887461655,-498.7252458,0.00024273,2]
[355079216,1740887461667,-198.73481955,0.00024273,2]
[355079218,1740887461680,-500.0,0.00024273,2]
[355079221,1740887461691,-500.0,0.00024273,2]
[355079223,1740887461701,-500.0,0.00024273,2]
[355079225,1740887461712,-198.50126215,0.00024273,2]
[355079227,1740887461723,-500.0,0.00024273,2]
[355079229,1740887461734,-500.0,0.00024273,2]
[355079231,1740887461745,-277.83044477,0.00024273,2]
[355079233,1740887461756,-500.0,0.00024273,2]
[355079235,1740887461767,-500.0,0.00024273,2]
[355079238,1740887461779,-500.0,0.00024273,2]
[355079240,1740887461790,-500.0,0.00024273,2]
[355079242,1740887461801,-395.46845043,0.00024273,2]
[355079244,1740887461812,-500.0,0.00024273,2]
[355079246,1740887461823,-501.869585,0.00024273,2]
[355079248,1740887461835,-500.0,0.00024273,2]
[355079250,1740887461846,-500.0,0.00024273,2]
[355079252,1740887461856,-500.0,0.00024273,2]
[355079255,1740887461867,-500.0,0.00024273,2]
[355079257,1740887461878,-500.0,0.00024337,2]
[355079259,1740887461889,-500.0,0.00024337,2]
[355079261,1740887461899,-500.0,0.00024337,2]
[355079263,1740887461910,-500.0,0.00024337,2]
[355079265,1740887461920,-163.59670622,0.00024337,2]
[355079267,1740887461931,-500.0,0.00024337,2]
[355079269,1740887461942,-635.09407997,0.00024337,2]
[355079271,1740887461953,-501.9560277,0.00024337,2]
[355079273,1740887461963,-500.0,0.00024337,2]
[355079275,1740887461974,-500.0,0.00024337,2]
[355079277,1740887461984,-500.0,0.00024337,2]
[355079280,1740887461995,-506.18584349,0.00024337,2]
[355079282,1740887462005,-500.0,0.00024337,2]
[355079284,1740887462016,-500.0,0.00024337,2]
[355079286,1740887462027,-500.0,0.00024337,2]
[355079288,1740887462037,-500.0,0.00024337,2]
[355079290,1740887462048,-500.0,0.00024337,2]
[355079292,1740887462058,-500.0,0.00024337,2]
[355079293,1740887462069,-500.0,0.00024337,2]
[355079294,1740887462079,-503.32504192,0.00024337,2]
[355079295,1740887462090,-700.75,0.00024337,2]
[355079296,1740887462109,-500.0,0.00024337,2]
[355079297,1740887462120,-500.0,0.00024337,2]
[355079298,1740887462131,-500.0,0.00024337,2]
[355079299,1740887462143,-500.0,0.00024337,2]
[355079300,1740887462156,-509.21,0.00024337,2]
[355079301,1740887462168,-500.0,0.00024337,2]
[355079302,1740887462178,-500.0,0.00024337,2]
[355079303,1740887462190,-500.0,0.00024337,2]
[355079304,1740887462201,-500.0,0.00024337,2]
[355079305,1740887462212,-504.04870159,0.00024337,2]
[355079307,1740887462222,-500.0,0.00024337,2]
[355079309,1740887462234,-500.0,0.00024337,2]
[355079311,1740887462245,-500.0,0.00024337,2]
[355079313,1740887462256,-500.0,0.00024337,2]
[355079315,1740887462267,-500.0,0.00024337,2]
[355079317,1740887462277,-500.0,0.00024337,2]
[355079319,1740887462287,-500.0,0.00024337,2]
[355079321,1740887462297,-500.0,0.00024337,2]
[355079323,1740887462308,-510.41695665,0.00024337,2]
[355079326,1740887462319,-500.0,0.00024337,2]
[355079328,1740887462329,-500.0,0.00024337,2]
[355079330,1740887462339,-500.0,0.00024337,2]
[355079332,1740887462350,-500.0,0.00024337,2]
[355079334,1740887462360,-500.0,0.00024337,2]
[355079336,1740887462370,-511.51,0.00024337,2]
[355079338,1740887462381,-500.0,0.00024337,2]
[355079340,1740887462391,-500.0,0.00024337,2]
[355079342,1740887462402,-500.0,0.00024337,2]
[355079344,1740887462412,-500.0,0.00024337,2]
[355079346,1740887462423,-500.0,0.00024337,2]
[355079349,1740887462434,-500.0,0.00024337,2]
[355079351,1740887462444,-545.25,0.00024337,2]
[355079353,1740887462455,-984.68,0.00024337,2]
[355079355,1740887462465,-500.0,0.00024337,2]
[355079357,1740887462476,-500.0,0.00024337,2]
[355079359,1740887462486,-500.0,0.00024337,2]
[355079361,1740887462497,-500.0,0.00024337,2]
[355079363,1740887462507,-500.0,0.00024337,2]
[355079365,1740887462518,-532.97,0.00024337,2]
[355079368,1740887462528,-500.0,0.00024337,2]
[355079370,1740887462539,-500.0,0.00024337,2]
[355079372,1740887462549,-500.0,0.00024337,2]
[355079374,1740887462560,-500.0,0.00024337,2]
[355079376,1740887462571,-500.0,0.00024337,2]
[355079378,1740887462583,-500.0,0.00024337,2]
[355079380,1740887462601,-204.93245156,0.00024337,2]
[355079382,1740887462612,-500.0,0.00024337,2]
[355079384,1740887462624,-500.0,0.00024337,2]
[355079386,1740887462635,-500.0,0.00024337,2]
[355079388,1740887462646,-500.0,0.00024337,2]
[355079390,1740887462657,-500.0,0.00024337,2]
[355079393,1740887462673,-500.0,0.00024337,2]
[355079395,1740887462683,-787.96,0.00024337,2]
[355079397,1740887462694,-500.0,0.00024337,2]
[355079399,1740887462704,-500.0,0.00024337,2]
[355079401,1740887462715,-411.03975086,0.00024337,2]
[355079403,1740887462725,-500.0,0.00024337,2]
[355079405,1740887462735,-500.0,0.00024337,2]
[355079407,1740887462746,-879.86,0.00024337,2]
[355079409,1740887462757,-500.0,0.00024337,2]
[355079411,1740887462768,-500.0,0.00024337,2]
[355079413,1740887462778,-511.59,0.00024337,2]
[355079415,1740887462789,-500.0,0.00024337,2]
[355079418,1740887462800,-1331.9,0.00024337,2]
[355079420,1740887462809,-500.0,0.00024337,2]
[355079422,1740887462820,-386.56256956,0.00024337,2]
[355079424,1740887462831,-500.0,0.00024337,2]
[355079426,1740887462841,-500.0,0.00024337,2]
[355079428,1740887462851,-500.0,0.00024337,2]
[355079430,1740887462861,-500.0,0.00024337,2]
[355079432,1740887462871,-500.0,0.00024337,2]
[355079434,1740887462883,-2389.55,0.00024337,2]
[355079436,1740887462893,-1197.27,0.00024337,2]
[355079438,1740887462903,-500.0,0.00024337,2]
[355079440,1740887462914,-518.174401,0.00024337,2]
[355079442,1740887462924,-1199.41,0.00024337,2]
[355079445,1740887462934,-500.0,0.00024337,2]
[355079447,1740887462945,-800.95,0.00024338,2]
[355079449,1740887462955,-500.0,0.00024338,2]
[355079451,1740887462966,-501.45141362,0.00024338,2]
[355079453,1740887462976,-500.0,0.00024338,2]
[355079455,1740887462986,-320.27103395,0.00024338,2]
[355079457,1740887462996,-500.0,0.00024338,2]
[355079459,1740887463006,-595.63,0.00024338,2]
[355079461,1740887463016,-500.0,0.00024338,2]
[355079463,1740887463027,-500.0,0.00024338,2]
[355079465,1740887463036,-619.14,0.00024338,2]
[355079467,1740887463047,-500.0,0.00024338,2]
[355079469,1740887463058,-579.62638565,0.00024338,2]
[355079472,1740887463073,-696.73,0.00024338,2]
[355079474,1740887463083,-500.0,0.00024338,2]
[355079476,1740887463093,-500.0,0.00024338,2]
[355079478,1740887463104,-500.0,0.00024338,2]
[355079480,1740887463113,-827.74,0.00024338,2]
[355079482,1740887463124,-500.0,0.00024338,2]
[355079484,1740887463135,-531.7889012,0.00024338,2]
[355079486,1740887463145,-454.60694463,0.00024338,2]
[355079488,1740887463156,-556.71,0.00024338,2]
[355079490,1740887463168,-500.0,0.00024338,2]
[355079492,1740887463179,-645.31,0.00024338,2]
[355079494,1740887463190,-500.0,0.00024338,2]
[355079496,1740887463201,-500.0,0.00024338,2]
[355079498,1740887463211,-500.0,0.00024338,2]
[355079500,1740887463222,-500.0,0.00024338,2]
[355079503,1740887463233,-500.0,0.00024338,2]
[355079505,1740887463244,-500.0,0.00024338,2]
[355079507,1740887463254,-546.83,0.00024338,2]
[355079509,1740887463265,-500.0,0.00024338,2]
[355079511,1740887463275,-500.0,0.00024338,2]
[355079513,1740887463285,-1197.2,0.00024338,2]
[355079515,1740887463295,-500.0,0.00024338,2]
[355079517,1740887463306,-824.78,0.00024338,2]
[355079519,1740887463317,-510.26,0.00024338,2]
[355079521,1740887463327,-500.0,0.00024338,2]
[355079523,1740887463337,-500.0,0.00024338,2]
[355079525,1740887463347,-500.0,0.00024338,2]
[355079527,1740887463358,-500.0,0.00024338,2]
[355079529,1740887463368,-500.0,0.00024338,2]
[355079531,1740887463379,-671.0,0.00024338,2]
[355079533,1740887463390,-500.0,0.00024338,2]
[355079535,1740887463401,-1080.75,0.00024338,2]
[355079537,1740887463412,-500.0,0.00024338,2]
[355079539,1740887463422,-500.0,0.00024338,2]
[355079553,1740887463433,-500.0,0.00024338,2]
[355079555,1740887463560,-500.0,0.00024338,2]
[355079557,1740887463570,-998.88,0.00024338,2]
[355079559,1740887463581,-500.0,0.00024338,2]
[355079562,1740887463605,-500.0,0.00024338,2]
[355079564,1740887463619,-500.0,0.00024338,2]
[355079566,1740887463631,-500.0,0.00024338,2]
[355079568,1740887463641,-500.0,0.00024338,2]
[355079571,1740887463652,-500.0,0.00024338,2]
[355079573,1740887463665,-1000.0,0.00024338,2]
[355079575,1740887463675,-1216.98,0.00024338,2]
[355079577,1740887463687,-658.58,0.00024338,2]
[355079579,1740887463697,-500.0,0.00024338,2]
[355079581,1740887463708,-1583.32,0.00024338,2]
[355079583,1740887463719,-500.0,0.00024338,2]
[355079585,1740887463729,-500.0,0.00024338,2]
[355079587,1740887463740,-255.44837832,0.00024338,2]
[355079589,1740887463750,-229.9786601,0.00024338,2]
[355079591,1740887463761,-500.0,0.00024338,2]
[355079593,1740887463771,-501.8535876,0.00024338,2]
[355079595,1740887463782,-500.0,0.00024338,2]
[355079597,1740887463791,-500.0,0.00024338,2]
[355079599,1740887463801,-500.0,0.00024338,2]
[355079601,1740887463811,-500.0,0.00024338,2]
[355079603,1740887463821,-500.0,0.00024338,2]
[355079605,1740887463831,-500.0,0.00024338,2]
[355079607,1740887463841,-500.0,0.00024338,2]
[355079609,1740887463852,-500.0,0.00024338,2]
[355079611,1740887463862,-500.0,0.00024338,2]
[355079613,1740887463873,-633.86,0.00024338,2]
[355079615,1740887463883,-502.10711538,0.00024338,2]
[355079618,1740887463894,-500.0,0.00024338,2]
[355079620,1740887463904,-500.0,0.00024338,2]
[355079622,1740887463916,-500.0,0.00024338,2]
[355079624,1740887463927,-500.0,0.00024338,2]
[355079626,1740887463938,-500.0,0.00024338,2]
[355079628,1740887463949,-500.0,0.00024338,2]
[355079630,1740887463959,-500.0,0.00024338,2]
[355079632,1740887463969,-500.0,0.00024338,2]
[355079634,1740887463979,-500.0,0.00024338,2]
[355079636,1740887463989,-500.0,0.00024338,2]
[355079638,1740887464000,-500.0,0.00024338,2]
[355079640,1740887464010,-500.0,0.00024338,2]
[355079642,1740887464020,-500.0,0.00024338,2]
[355079644,1740887464030,-500.0,0.00024338,2]
[355079646,1740887464041,-284.83439752,0.00024338,2]
[355079648,1740887464051,-491.93756806,0.00024338,2]
[355079651,1740887464062,-500.0,0.00024338,2]
[355079653,1740887464072,-903.21,0.00024338,2]
[355079655,1740887464082,-500.0,0.00024338,2]
[355079657,1740887464093,-503.6941548,0.00024338,2]
[355079659,1740887464103,-500.0,0.00024338,2]
[355079661,1740887464113,-500.0,0.0002435,2]
[355079663,1740887464126,-500.0,0.0002435,2]
[355079665,1740887464136,-500.0,0.0002435,2]
[355079667,1740887464146,-500.0,0.0002435,2]
[355079669,1740887464156,-472.7279095,0.0002435,2]
[355079671,1740887464169,-500.0,0.0002435,2]